{"text_format":"1","workbook":"xlsx","n_sheets":6,"sheets":["Injustering","Aggregat","Luftflöde","Spjäll o Mätpunkt","Don- o mätenh.fört","Arbetsbeskrivning"],"not_rendered":{"charts":0,"images":10,"macros":1,"external_links":0,"defined_names":6,"comments":5,"pivot_tables":0},"unopened":[],"bounds":{"document_bytes":16777216,"sheet_cells":100000,"rows_first":2000,"rows_last":500,"rows_between":2000,"halvings":0,"cell_chars":16384,"cell_head_chars":4096},"cells_cut":0,"cells_raw":0,"read":"whole","date_system":"1900"}

{"sheet":"Injustering","index":0,"n_rows":24,"n_cols":12,"rows_kept":24,"cut":false,"hidden":false,"merged":[[41,0,41,11],[42,0,42,11],[43,0,43,11],[44,0,44,11],[35,0,35,11],[36,0,36,11],[37,0,37,11],[38,0,38,11],[39,0,39,11],[40,0,40,11],[34,0,34,11],[23,0,23,11],[24,0,24,11],[25,0,25,11],[26,0,26,11],[27,0,27,11],[28,0,28,11],[29,0,29,11],[30,0,30,11],[31,0,31,11],[32,0,32,11],[33,0,33,11],[20,0,20,1],[20,2,20,3],[20,4,20,5],[20,7,20,8],[20,9,20,11],[21,0,21,1],[21,2,21,3],[21,4,21,5],[21,7,21,8],[21,9,21,11],[18,0,18,1],[18,2,18,3],[18,4,18,5],[18,7,18,8],[18,9,18,11],[19,0,19,1],[19,2,19,3],[19,4,19,5],[19,7,19,8],[19,9,19,11],[16,0,16,1],[16,2,16,3],[16,4,16,5],[16,7,16,11],[17,0,17,1],[17,2,17,3],[17,4,17,5],[17,7,17,8],[17,9,17,11],[14,0,14,1],[14,2,14,3],[14,4,14,5],[14,7,14,8],[14,9,14,11],[15,0,15,1],[15,2,15,3],[15,4,15,5],[15,7,15,8],[15,9,15,11],[12,0,12,1],[12,2,12,5],[12,7,12,8],[12,9,12,11],[13,0,13,1],[13,2,13,5],[13,7,13,8],[13,9,13,11],[9,0,9,5],[9,10,9,11],[10,0,10,5],[10,7,10,11],[11,0,11,1],[11,2,11,5],[11,7,11,8],[11,9,11,11],[7,7,7,9],[7,10,7,11],[8,0,8,2],[8,3,8,5],[8,7,8,9],[8,10,8,11],[0,0,3,11],[4,0,4,1],[4,8,4,9],[6,3,6,5],[6,7,6,9],[6,0,6,1],[5,0,5,1]]}
["Injusteringsrapport"]
[]
[]
[]
["ver. 2019.1",null,null,null,null,null,null,null,null,null," Blad"]
["Referensnr REQS",null,"Projektnr"," Fastighet/objekt",null,null,null," Aggregatbeteckning",null,null," Flödesenhet"]
[null,null,null,null,null,null,null,null,null,null,"l/s","m3/h"]
["Fastighetsbeteckning, kvartersnamn",null,null," Byggnadsnummer",null,null,null," Mättekniker",null,null," Datum"]
[]
[null,null,null,null,null,null,null,null,null,"Rev. datum"]
["Injusteringen utförd av",null,null,null,null,null,null,"Underlag"]
["Företag",null,null,null,null,null,null,"Beskrivning"]
["Ansv. Injusterare",null,null,null,null,null,null,"Ritning"]
["Adress",null,null,null,null,null,null,"Projektvärden"]
["Tel./Mobiltel.",null,null,null,null,null,null,"Tidigare protokoll"]
["Cert nr./Cert organisation",null,null,null,null,null,null,"Produkt dok."]
["Instrument fabrikat",null,"Typ",null,"Kalibrerat den",null,null,"Dimensionering och uppbyggnad"]
[null,null,null,null,null,null,null,"Väl dimensionerat"]
[null,null,null,null,null,null,null,"Rätt valda don"]
[null,null,null,null,null,null,null,"Fungerar kfaktorer"]
[null,null,null,null,null,null,null,"Övrigt"]
[null,null,null,null,null,null,null,"Övrigt"]
[]
[" Anmärkningar         (max 120 tecken/rad)"]

{"sheet":"Aggregat","index":1,"n_rows":42,"n_cols":117,"rows_kept":42,"cut":false,"hidden":false,"merged":[[41,0,41,13],[42,0,42,13],[43,0,43,13],[44,0,44,13],[45,0,45,13],[46,0,46,13],[39,0,39,1],[39,2,39,3],[39,9,39,10],[39,11,39,13],[40,2,40,3],[40,4,40,7],[40,9,40,10],[40,11,40,13],[37,0,37,1],[37,2,37,3],[37,4,37,7],[37,9,37,10],[37,11,37,13],[38,0,38,1],[38,2,38,3],[38,4,38,7],[38,9,38,10],[38,11,38,13],[35,2,35,3],[35,5,35,7],[35,9,35,13],[36,0,36,1],[36,2,36,3],[36,4,36,7],[36,9,36,10],[36,11,36,13],[33,0,33,1],[33,2,33,7],[33,9,33,10],[33,11,33,13],[34,0,34,1],[34,2,34,7],[34,9,34,10],[34,11,34,13],[31,0,31,1],[31,2,31,7],[31,9,31,10],[31,11,31,13],[32,0,32,1],[32,2,32,7],[32,9,32,10],[32,11,32,13],[27,0,27,13],[27,107,27,120],[29,0,29,7],[29,9,29,13],[30,0,30,1],[30,2,30,3],[30,9,30,10],[30,11,30,13],[24,0,24,13],[24,107,24,120],[25,0,25,13],[25,107,25,120],[26,0,26,13],[26,107,26,120],[22,0,22,13],[22,107,22,120],[23,0,23,13],[23,107,23,120],[20,116,20,117],[20,118,20,120],[21,0,21,1],[21,2,21,3],[21,4,21,7],[21,9,21,10],[21,11,21,13],[21,107,21,108],[21,109,21,110],[21,111,21,114],[19,118,19,120],[20,0,20,1],[20,2,20,3],[20,9,20,10],[20,11,20,13],[20,107,20,108],[20,109,20,110],[21,116,21,117],[21,118,21,120],[19,0,19,1],[19,2,19,3],[19,4,19,7],[19,9,19,10],[19,11,19,13],[19,107,19,108],[19,109,19,110],[19,111,19,114],[19,116,19,117],[17,109,17,110],[17,111,17,114],[17,116,17,117],[17,118,17,120],[18,0,18,1],[18,2,18,3],[18,4,18,7],[18,9,18,10],[18,11,18,13],[18,107,18,108],[17,0,17,1],[17,2,17,3],[17,4,17,7],[17,9,17,10],[17,11,17,13],[17,107,17,108],[18,109,18,110],[18,111,18,114],[18,116,18,117],[18,118,18,120],[16,2,16,3],[16,5,16,7],[16,9,16,13],[16,109,16,110],[16,112,16,114],[16,116,16,120],[14,116,14,117],[14,118,14,120],[15,0,15,1],[15,2,15,7],[15,9,15,10],[15,11,15,13],[15,107,15,108],[15,109,15,114],[15,116,15,117],[15,118,15,120],[14,0,14,1],[14,2,14,7],[14,9,14,10],[14,11,14,13],[14,107,14,108],[14,109,14,114],[12,0,12,1],[12,2,12,7],[12,9,12,10],[12,11,12,13],[12,107,12,108],[12,109,12,114],[12,116,12,117],[12,118,12,120],[13,0,13,1],[13,2,13,7],[13,9,13,10],[13,11,13,13],[13,107,13,108],[13,109,13,114],[13,116,13,117],[13,118,13,120],[9,12,9,13],[10,0,10,7],[10,9,10,13],[10,107,10,114],[10,116,10,120],[11,0,11,1],[11,2,11,3],[11,9,11,10],[11,11,11,13],[11,107,11,108],[11,109,11,111],[11,112,11,114],[11,116,11,117],[11,118,11,120],[7,9,7,11],[7,12,7,13],[8,0,8,2],[8,3,8,7],[8,9,8,11],[8,12,8,13],[3,0,3,13],[4,0,4,1],[4,12,4,13],[6,3,6,7],[6,9,6,11],[6,0,6,1]]}
[]
[]
[]
["Aggregatprotokoll"]
[]
["Referensnr REQS",null,"Projektnr"," Fastighet/objekt",null,null,null,null,null," Aggregatbeteckning",null,null," Flödesenhet"," Blad"]
[{"$f":"Injustering!A7","v":0},null,{"$f":"Injustering!C7","v":0},{"$f":"Injustering!D7","v":0},null,null,null,null,null,{"$f":"Injustering!H7","v":0}]
["Fastighetsbeteckning, kvartersnamn",null,null," Byggnadsnummer",null,null,null,null,null," Mättekniker",null,null," Datum"]
[{"$f":"Injustering!A9","v":0},null,null,{"$f":"Injustering!D9","v":0},null,null,null,null,null,{"$f":"Injustering!H9","v":0},null,null,{"$f":"Injustering!K9","v":0}]
[null,null,null,null,null,null,null,null,null,null,null,"Rev. Datum",{"$f":"Injustering!K10","v":0}]
["Fläktdata",null,null,null,null,null,null,null,null,"Motordata",null,null,null,null,null,null,null,null,null,null,null,null,null,null,null,null,null,null,null,null,null,null,null,null,null,null,null,null,null,null,null,null,null,null,null,null,null,null,null,null,null,null,null,null,null,null,null,null,null,null,null,null,null,null,null,null,null,null,null,null,null,null,null,null,null,null,null,null,null,null,null,null,null,null,null,null,null,null,null,null,null,null,null,null,null,null,null,null,null,null,null,null,null,null,null,null,null,"FLÄKTDATA",null,null,null,null,null,null,null,null,"MOTORDATA"]
["Beteckning",null,null,null,null,null,null,null,null,"Fabrikat, typ",null,null,null,null,null,null,null,null,null,null,null,null,null,null,null,null,null,null,null,null,null,null,null,null,null,null,null,null,null,null,null,null,null,null,null,null,null,null,null,null,null,null,null,null,null,null,null,null,null,null,null,null,null,null,null,null,null,null,null,null,null,null,null,null,null,null,null,null,null,null,null,null,null,null,null,null,null,null,null,null,null,null,null,null,null,null,null,null,null,null,null,null,null,null,null,null,null,"Beteckning",null,null,null,null,null,null,null,null,"Fabrikat, typ"]
["Fabrikat",null,null,null,null,null,null,null,null,"Varvtal [r/m]",null,null,null,null,null,null,null,null,null,null,null,null,null,null,null,null,null,null,null,null,null,null,null,null,null,null,null,null,null,null,null,null,null,null,null,null,null,null,null,null,null,null,null,null,null,null,null,null,null,null,null,null,null,null,null,null,null,null,null,null,null,null,null,null,null,null,null,null,null,null,null,null,null,null,null,null,null,null,null,null,null,null,null,null,null,null,null,null,null,null,null,null,null,null,null,null,null,"Fabrikat",null,null,null,null,null,null,null,null,"Varvtal [r/m]"]
["Typ",null,null,null,null,null,null,null,null,"Effekt [kW]",null,null,null,null,null,null,null,null,null,null,null,null,null,null,null,null,null,null,null,null,null,null,null,null,null,null,null,null,null,null,null,null,null,null,null,null,null,null,null,null,null,null,null,null,null,null,null,null,null,null,null,null,null,null,null,null,null,null,null,null,null,null,null,null,null,null,null,null,null,null,null,null,null,null,null,null,null,null,null,null,null,null,null,null,null,null,null,null,null,null,null,null,null,null,null,null,null,"Typ",null,null,null,null,null,null,null,null,"Effekt [kW]"]
["Placering",null,null,null,null,null,null,null,null,"Märkström [A]",null,null,null,null,null,null,null,null,null,null,null,null,null,null,null,null,null,null,null,null,null,null,null,null,null,null,null,null,null,null,null,null,null,null,null,null,null,null,null,null,null,null,null,null,null,null,null,null,null,null,null,null,null,null,null,null,null,null,null,null,null,null,null,null,null,null,null,null,null,null,null,null,null,null,null,null,null,null,null,null,null,null,null,null,null,null,null,null,null,null,null,null,null,null,null,null,null,"Placering",null,null,null,null,null,null,null,null,"Märkström [A]"]
["Betjänar",null,null,null,null,null,null,null,null,"Driftström [A]",null,null,null,null,null,null,null,null,null,null,null,null,null,null,null,null,null,null,null,null,null,null,null,null,null,null,null,null,null,null,null,null,null,null,null,null,null,null,null,null,null,null,null,null,null,null,null,null,null,null,null,null,null,null,null,null,null,null,null,null,null,null,null,null,null,null,null,null,null,null,null,null,null,null,null,null,null,null,null,null,null,null,null,null,null,null,null,null,null,null,null,null,null,null,null,null,null,"Betjänar",null,null,null,null,null,null,null,null,"Driftström [A]"]
[null,"Flöde & Tryck","projekterat",null,null,"genom mätning",null,null,null,"Remdrift",null,null,null,null,null,null,null,null,null,null,null,null,null,null,null,null,null,null,null,null,null,null,null,null,null,null,null,null,null,null,null,null,null,null,null,null,null,null,null,null,null,null,null,null,null,null,null,null,null,null,null,null,null,null,null,null,null,null,null,null,null,null,null,null,null,null,null,null,null,null,null,null,null,null,null,null,null,null,null,null,null,null,null,null,null,null,null,null,null,null,null,null,null,null,null,null,null,null,"FLÖDE & TRYCK","projekterat",null,null,"genom mätning",null,null,null,"REMDRIFT"]
["q tot",null,null,null,null,null,null,null,null,"Motorskiva f [mm] ",null,null,null,null,null,null,null,null,null,null,null,null,null,null,null,null,null,null,null,null,null,null,null,null,null,null,null,null,null,null,null,null,null,null,null,null,null,null,null,null,null,null,null,null,null,null,null,null,null,null,null,null,null,null,null,null,null,null,null,null,null,null,null,null,null,null,null,null,null,null,null,null,null,null,null,null,null,null,null,null,null,null,null,null,null,null,null,null,null,null,null,null,null,null,null,null,null,"q tot",null,null,null,null,null,null,null,null,"Motorskiva f [mm] "]
["q delflöden",null,null,null,null,null,null,null,null,"Bussn./axel [mm]",null,null,null,null,null,null,null,null,null,null,null,null,null,null,null,null,null,null,null,null,null,null,null,null,null,null,null,null,null,null,null,null,null,null,null,null,null,null,null,null,null,null,null,null,null,null,null,null,null,null,null,null,null,null,null,null,null,null,null,null,null,null,null,null,null,null,null,null,null,null,null,null,null,null,null,null,null,null,null,null,null,null,null,null,null,null,null,null,null,null,null,null,null,null,null,null,null,"q delflöden",null,null,null,null,null,null,null,null,"Bussn./axel [mm]"]
["Pt [Pa]",null,null,null,null,null,null,null,null,"Fläktskiva [mm]",null,null,null,null,null,null,null,null,null,null,null,null,null,null,null,null,null,null,null,null,null,null,null,null,null,null,null,null,null,null,null,null,null,null,null,null,null,null,null,null,null,null,null,null,null,null,null,null,null,null,null,null,null,null,null,null,null,null,null,null,null,null,null,null,null,null,null,null,null,null,null,null,null,null,null,null,null,null,null,null,null,null,null,null,null,null,null,null,null,null,null,null,null,null,null,null,null,"Pt [Pa]",null,null,null,null,null,null,null,null,"Fläktskiva [mm]"]
["Pk [Pa]",null,null,null,"+",null,"-",null,null,"Bussn./axel [mm]",null,null,null,null,null,null,null,null,null,null,null,null,null,null,null,null,null,null,null,null,null,null,null,null,null,null,null,null,null,null,null,null,null,null,null,null,null,null,null,null,null,null,null,null,null,null,null,null,null,null,null,null,null,null,null,null,null,null,null,null,null,null,null,null,null,null,null,null,null,null,null,null,null,null,null,null,null,null,null,null,null,null,null,null,null,null,null,null,null,null,null,null,null,null,null,null,null,"Pk [Pa]",null,null,null,"+",null,"-",null,null,"Bussn./axel [mm]"]
[null,null,null,null,null,null,null,null,null,"Fläktvarvtal [r/m]",null,null,null,null,null,null,null,null,null,null,null,null,null,null,null,null,null,null,null,null,null,null,null,null,null,null,null,null,null,null,null,null,null,null,null,null,null,null,null,null,null,null,null,null,null,null,null,null,null,null,null,null,null,null,null,null,null,null,null,null,null,null,null,null,null,null,null,null,null,null,null,null,null,null,null,null,null,null,null,null,null,null,null,null,null,null,null,null,null,null,null,null,null,null,null,null,null,null,null,null,null,null,null,null,null,null,"Fläktvarvtal [r/m]"]
[" Anmärkningar             (max 120 tecken/rad)",null,null,null,null,null,null,null,null,null,null,null,null,null,null,null,null,null,null,null,null,null,null,null,null,null,null,null,null,null,null,null,null,null,null,null,null,null,null,null,null,null,null,null,null,null,null,null,null,null,null,null,null,null,null,null,null,null,null,null,null,null,null,null,null,null,null,null,null,null,null,null,null,null,null,null,null,null,null,null,null,null,null,null,null,null,null,null,null,null,null,null,null,null,null,null,null,null,null,null,null,null,null,null,null,null,null," Anmärkningar             (max 120 tecken/rad)"]
[]
[]
[]
[]
[]
[]
["Fläktdata",null,null,null,null,null,null,null,null,"Motordata"]
["Beteckning",null,null,null,null,null,null,null,null,"Fabrikat, typ"]
["Fabrikat",null,null,null,null,null,null,null,null,"Varvtal [r/m]"]
["Typ",null,null,null,null,null,null,null,null,"Effekt [kW]"]
["Placering",null,null,null,null,null,null,null,null,"Märkström [A]"]
["Betjänar",null,null,null,null,null,null,null,null,"Driftström [A]"]
[null,"Flöde & Tryck","projekterat",null,null,"genom mätning",null,null,null,"Remdrift"]
["q tot",null,null,null,null,null,null,null,null,"Motorskiva f [mm] "]
["q delflöden",null,null,null,null,null,null,null,null,"Bussn./axel [mm]"]
["Pt [Pa]",null,null,null,null,null,null,null,null,"Fläktskiva [mm]"]
["Pk [Pa]",null," ",null,"+",null,"-",null,null,"Bussn./axel [mm]"]
[null,null,null,null,null,null,null,null,null,"Fläktvarvtal [r/m]"]
[" Anmärkningar             (max 120 tecken/rad)"]

{"sheet":"Luftflöde","index":2,"n_rows":50,"n_cols":15,"rows_kept":50,"cut":false,"hidden":false,"merged":[[53,0,53,14],[54,0,54,14],[16,14,17,14],[49,5,49,7],[49,11,49,14],[50,0,50,14],[51,0,51,14],[52,0,52,14],[16,0,17,0],[16,1,17,1],[16,2,17,2],[16,3,16,7],[16,9,16,13],[9,0,10,7],[9,11,10,11],[9,13,10,14],[13,11,13,14],[14,11,14,14],[7,9,7,11],[7,13,7,14],[8,0,8,3],[8,4,8,7],[8,9,8,11],[8,13,8,14],[0,0,3,14],[4,0,4,1],[4,13,4,14],[6,4,6,7],[6,9,6,11],[6,0,6,1],[5,2,5,3]]}
["Luftflödesprotokoll"]
[]
[]
[]
[]
["Referensnr REQS",null,"Projektnr",null,"  Fastighet/objekt",null,null,null,null," Aggregatbeteckning",null,null,null,"Flödesenh"," Blad"]
[{"$f":"Injustering!A7","v":0},null,{"$f":"Injustering!C7","v":0},null,{"$f":"Injustering!D7","v":0},null,null,null,null,{"$f":"Injustering!H7","v":0}]
["Fastighetsbeteckning, kvartersnamn",null,null,null," Byggnadsnummer",null,null,null,null," Mättekniker",null,null,null," Datum"]
[{"$f":"Injustering!A9","v":0},null,null,null,{"$f":"Injustering!D9","v":0},null,null,null,null,{"$f":"Injustering!H9","v":0},null,null,null,{"$f":"Injustering!K9","v":0}]
[null,null,null,null,null,null,null,null,null,null,null,"Rev datum",null,{"$f":"Injustering!K10","v":0}]
[]
[" MÄTMETOD:"]
[" 1 = Punktvis hastighetsmätning i kanal",null,null,null,null," 4 = Punktvis hast. mätning på rekt. galler",null,null,null,null,null," 7 = Påsmetoden"]
[" 2 = Fasta flödesmätdon och tryckuttag",null,null,null,null," 5 = Tryckfallsmätning med sond",null,null,null,null,null," 8 = Övrigt"]
[" 3 = Spårgasmätning",null,null,null,null," 6 = Stosförsedd anemometer",null,null,null,null,null," 9 = Övrigt"]
[]
["Rums-nummer","Lokalbenämning","Antal personer","Tilluftflöde",null,null,null,null,null,"Frånluftflöde",null,null,null,null,"Anm.    not nr."]
[null,null,null,"Projekterat","Uppmätt","Mätmetod","Verifierat ","Avvikelse    [%]",null,"Projekterat","Uppmätt","Mätmetod","Verifierat ","Avvikelse    [%]"]
[null,null,null,null,null,null,null,{"$f":"IF(OR(E19=0,D19=0),\" \",(E19*100/D19-100))","v":" "},null,null,null,null,null,{"$f":"IF(OR(K19=0,J19=0),\" \",(K19*100/J19-100))","v":" "}]
[null,null,null,null,null,null,null," ",null,null,null,null,null," "]
[null,null,null,null,null,null," "," ",null,null,null,null,null," "]
[null," ",null,null,null,null,null," ",null,null,null,null,null," "]
[null,null,null,null,null,null,null," ",null,null,null,null,null," "]
[null,null,null,null,null,null,null," ",null,null,null,null,null," "]
[null,null,null,null,null,null,null," ",null,null,null,null,null," "]
[null,null,null,null,null,null,null," ",null,null,null,null,null," "]
[null,null,null,null,null,null,null," ",null,null,null,null,null," "]
[null,null,null,null,null,null,null," ",null,null,null,null,null," "]
[null,null,null,null,null,null,null," ",null,null,null,null,null," "]
[null,null,null,null,null,null,null," ",null,null,null,null,null," "]
[null,null,null,null,null,null,null," ",null,null,null,null,null," "]
[null,null,null,null,null,null,null," ",null,null,null,null,null," "]
[null,null,null,null,null,null,null," ",null,null,null,null,null," "]
[null,null,null,null,null,null,null," ",null,null,null,null,null," "]
[null,null,null,null,null,null,null," ",null,null,null,null,null," "]
[null,null,null,null,null,null,null,{"$f":"IF(OR(E36=0,D36=0),\" \",(E36*100/D36-100))","v":" "},null,null,null,null,null,{"$f":"IF(OR(K36=0,J36=0),\" \",(K36*100/J36-100))","v":" "}]
[null,null,null,null,null,null,null,{"$f":"IF(OR(E37=0,D37=0),\" \",(E37*100/D37-100))","v":" "},null,null,null,null,null,{"$f":"IF(OR(K37=0,J37=0),\" \",(K37*100/J37-100))","v":" "}]
[null,null,null,null,null,null,null," ",null,null,null,null,null," "]
[null,null,null,null,null,null,null," ",null,null,null,null,null," "]
[null,null,null,null,null,null,null," ",null,null,null,null,null," "]
[null,null,null,null,null,null,null," ",null,null,null,null,null," "]
[null,null,null,null,null,null,null," ",null,null,null,null,null," "]
[null,null,null,null,null,null,null," ",null,null,null,null,null," "]
[null,null,null,null,null,null,null," ",null,null,null,null,null," "]
[null,null,null,null,null,null,null," ",null,null,null,null,null," "]
[null,null,null,null,null,null,null," ",null,null,null,null,null," "]
[null,null,null,null,null,null,null," ",null,null,null,null,null," "]
[null,null,null,null,null,null,null," ",null,null,null,null,null," "]
[null,null,null,null,null,null,null," ",null,null,null,null,null," "]
["Anmärkningar förklaringar",null,null,{"$f":"SUMIF(A19:A49,\"<>mp*\",D19:D49)","v":0},{"$f":"SUMIF(A19:A49,\"<>mp*\",E19:E49)","v":0},"Summa",null,null,null,{"$f":"SUMIF(A19:A49,\"<>mp*\",J19:J49)","v":0},{"$f":"SUMIF(A19:A49,\"<>mp*\",K19:K49)","v":0},"Summa"]

{"sheet":"Spjäll o Mätpunkt","index":3,"n_rows":41,"n_cols":11,"rows_kept":41,"cut":false,"hidden":false,"merged":[[44,0,44,10],[39,1,39,4],[39,8,39,9],[40,0,40,10],[41,0,41,10],[42,0,42,10],[43,0,43,10],[36,1,36,4],[36,8,36,9],[37,1,37,4],[37,8,37,9],[38,1,38,4],[38,8,38,9],[33,1,33,4],[33,8,33,9],[34,1,34,4],[34,8,34,9],[35,1,35,4],[35,8,35,9],[30,1,30,4],[30,8,30,9],[31,1,31,4],[31,8,31,9],[32,1,32,4],[32,8,32,9],[27,1,27,4],[27,8,27,9],[28,1,28,4],[28,8,28,9],[29,1,29,4],[29,8,29,9],[24,1,24,4],[24,8,24,9],[25,1,25,4],[25,8,25,9],[26,1,26,4],[26,8,26,9],[21,1,21,4],[21,8,21,9],[22,1,22,4],[22,8,22,9],[23,1,23,4],[23,8,23,9],[18,1,18,4],[18,8,18,9],[19,1,19,4],[19,8,19,9],[20,1,20,4],[20,8,20,9],[15,1,15,4],[15,8,15,9],[16,1,16,4],[16,8,16,9],[17,1,17,4],[17,8,17,9],[12,1,12,4],[12,8,12,9],[13,1,13,4],[13,8,13,9],[14,1,14,4],[14,8,14,9],[9,0,9,4],[9,7,9,8],[9,9,9,10],[10,0,11,0],[10,1,11,4],[10,5,11,5],[10,6,11,6],[10,7,10,9],[10,10,11,10],[11,8,11,9],[7,6,7,8],[7,9,7,10],[8,0,8,2],[8,3,8,4],[8,6,8,8],[8,9,8,10],[0,0,3,10],[4,0,4,1],[4,9,4,10],[5,6,5,8],[6,3,6,4],[6,6,6,8],[6,0,6,1]]}
["Spjäll och mätpunktsförteckning"]
[]
[]
[]
[]
["Referensnummer REQS",null,"Projektnr"," Fastighet/objekt",null,null," Aggregatbeteckning",null,null," Flödesenhet"," Blad"]
[{"$f":"Injustering!A7","v":0},null,{"$f":"Injustering!C7","v":0},{"$f":"Injustering!D7","v":0},null,null,{"$f":"Injustering!H7","v":0}]
["Fastighetsbeteckning, kvartersnamn",null,null," Byggnadsnummer",null,null," Mättekniker",null,null," Datum"]
[{"$f":"Injustering!A9","v":0},null,null,{"$f":"Injustering!D9","v":0},null,null,{"$f":"Injustering!H9","v":0},null,null,{"$f":"Injustering!K9","v":0}]
[null,null,null,null,null,null,null,"Rev. Datum",null,{"$f":"Injustering!K10","v":0}]
["Nr","Placering (max 28 tecken)",null,null,null,"Läge","Tryck [Pa]","Flöde",null,null,"Not nr."]
[null,null,null,null,null,null,null,"Projekterat","Uppmätt"]
[]
[]
[]
[]
[]
[]
[]
[]
[]
[]
[]
[]
[]
[]
[]
[]
[]
[]
[]
[]
[]
[]
[]
[]
[]
[]
[]
[]
[" Anmärkningar         (max 120 tecken/rad)"]

{"sheet":"Don- o mätenh.fört","index":4,"n_rows":11,"n_cols":12,"rows_kept":11,"cut":false,"hidden":false,"merged":[[41,0,41,1],[41,2,41,3],[41,4,41,5],[41,6,41,7],[41,9,41,11],[39,0,39,1],[39,2,39,3],[39,4,39,5],[39,6,39,7],[39,9,39,11],[40,0,40,1],[40,2,40,3],[40,4,40,5],[40,6,40,7],[40,9,40,11],[37,0,37,1],[37,2,37,3],[37,4,37,5],[37,6,37,7],[37,9,37,11],[38,0,38,1],[38,2,38,3],[38,4,38,5],[38,6,38,7],[38,9,38,11],[35,0,35,1],[35,2,35,3],[35,4,35,5],[35,6,35,7],[35,9,35,11],[36,0,36,1],[36,2,36,3],[36,4,36,5],[36,6,36,7],[36,9,36,11],[33,0,33,1],[33,2,33,3],[33,4,33,5],[33,6,33,7],[33,9,33,11],[34,0,34,1],[34,2,34,3],[34,4,34,5],[34,6,34,7],[34,9,34,11],[31,0,31,1],[31,2,31,3],[31,4,31,5],[31,6,31,7],[31,9,31,11],[32,0,32,1],[32,2,32,3],[32,4,32,5],[32,6,32,7],[32,9,32,11],[29,0,29,1],[29,2,29,3],[29,4,29,5],[29,6,29,7],[29,9,29,11],[30,0,30,1],[30,2,30,3],[30,4,30,5],[30,6,30,7],[30,9,30,11],[27,0,27,1],[27,2,27,3],[27,4,27,5],[27,6,27,7],[27,9,27,11],[28,0,28,1],[28,2,28,3],[28,4,28,5],[28,6,28,7],[28,9,28,11],[25,0,25,1],[25,2,25,3],[25,4,25,5],[25,6,25,7],[25,9,25,11],[26,0,26,1],[26,2,26,3],[26,4,26,5],[26,6,26,7],[26,9,26,11],[23,0,23,1],[23,2,23,3],[23,4,23,5],[23,6,23,7],[23,9,23,11],[24,0,24,1],[24,2,24,3],[24,4,24,5],[24,6,24,7],[24,9,24,11],[21,0,21,1],[21,2,21,3],[21,4,21,5],[21,6,21,7],[21,9,21,11],[22,0,22,1],[22,2,22,3],[22,4,22,5],[22,6,22,7],[22,9,22,11],[19,0,19,1],[19,2,19,3],[19,4,19,5],[19,6,19,7],[19,9,19,11],[20,0,20,1],[20,2,20,3],[20,4,20,5],[20,6,20,7],[20,9,20,11],[17,0,17,1],[17,2,17,3],[17,4,17,5],[17,6,17,7],[17,9,17,11],[18,0,18,1],[18,2,18,3],[18,4,18,5],[18,6,18,7],[18,9,18,11],[15,0,15,1],[15,2,15,3],[15,4,15,5],[15,6,15,7],[15,9,15,11],[16,0,16,1],[16,2,16,3],[16,4,16,5],[16,6,16,7],[16,9,16,11],[13,0,13,1],[13,2,13,3],[13,4,13,5],[13,6,13,7],[13,9,13,11],[14,0,14,1],[14,2,14,3],[14,4,14,5],[14,6,14,7],[14,9,14,11],[11,0,11,1],[11,2,11,3],[11,4,11,5],[11,6,11,7],[11,9,11,11],[12,0,12,1],[12,2,12,3],[12,4,12,5],[12,6,12,7],[12,9,12,11],[10,0,10,1],[10,2,10,3],[10,4,10,5],[10,6,10,7],[10,9,10,11],[7,7,7,9],[7,10,7,11],[8,0,8,2],[8,3,8,5],[8,7,8,9],[8,10,8,11],[0,0,3,11],[4,0,4,1],[4,10,4,11],[5,7,5,9],[6,3,6,5],[6,7,6,9],[9,0,9,5],[9,10,9,11],[6,0,6,1]]}
["Don- och mätenhetsförteckning"]
[]
[]
[]
[]
["Referensnummer REQS",null,"Projektnr"," Fastighet/objekt",null,null,null," Aggregatbeteckning",null,null," Flödesenhet"," Blad"]
[{"$f":"Injustering!A7","v":0},null,{"$f":"Injustering!C7","v":0},{"$f":"Injustering!D7","v":0},null,null,null,{"$f":"Injustering!H7","v":0}]
["Fastighetsbeteckning, kvartersnamn",null,null," Byggnadsnummer",null,null,null," Mättekniker",null,null," Datum"]
[{"$f":"Injustering!A9","v":0},null,null,{"$f":"Injustering!D9","v":0},null,null,null,{"$f":"Injustering!H9","v":0},null,null,{"$f":"Injustering!K9","v":0}]
[null,null,null,null,null,null,null,null,null,"Rev. Datum",{"$f":"Injustering!K10","v":0}]
["Beteckning",null,"Fabrikat",null,"Typ",null,"Storlek",null,"Kfaktor","Anm"]

{"sheet":"Arbetsbeskrivning","index":5,"n_rows":71,"n_cols":1,"rows_kept":71,"cut":false,"hidden":false,"merged":[]}
["Arbetsbeskrivning av ventilationsinjustering.    "]
[]
["Dimensionering och produktval"]
[]
["Injusteraren skall redovisa sina erfarenheter gällande utförd dimensionering av kanalsystem och produkter. Syftet med denna redovisning är att upprätta en kunskapsbank med produkter och konstruktioner som fungerar väl och om möjligt vilka kombinationer som fungerar bäst. "]
["Särskilt viktigt är det att redovisa sådana produkter som fungerar dåligt eller som har felaktig eller otillräcklig dokumentation."]
["När det gäller dokumentation över produkter som levererats tidigare och där felaktigheter upptäcks, skall revideras på bästa sätt så att det klart framgår vad som är fel och hur detta korrigerats. Uppgift om detta skall finnas i injusteringsrapporten."]
[]
["Dokumentation"]
[]
["Innan injusteringen påbörjas skall all för projektet nödvändig dokumentation tas fram. Gällande arbetsritning, beskrivning, projekterade värden, uppgifter om driftfall, fabrikantens montageföreskrifter samt föreskrifter om injustering och mätnoggrannhet."]
["De uppgifter som ligger till grund för injusteringen skall redovisas i protokollet don- och mätenhetsförteckning."]
["Uppgifter om totalflöde, tryck, k-faktorer och mätmetod på don och spjäll skall finnas i injusteringsrapporten."]
[]
["Märklappen"]
[]
["Märklappen finns att hämta på Locums huvudkontorets reception. Varje mätpunkt för total- och delflöde skall märkas med särskild märklapp. Saknas sådan mätpunkt skall injusteraren genom kanalmätning eller på annat lämpligt sätt, mäta och dokumentera en mätpunkt som kan användas för kontroll. Mätpunkten skall redovisas i protokollet Spjäll- och mätpunktsförteckning. "]
["På anvisad plats på märklappen skall fyllas i uppgifter om mätpunktens nummer, projekterat luftflöde, uppmätt luftflöde, statiskt tryck vid mätstället samt datum och signatur."]
["Märklappen är självhäftande och skall fästas på lämplig yta i närheten av mätpunkten."]
[" Märklappen är även perforerad i de fall den måste fästas med tråd."]
["I nedre delen av märklappen finns en grön cirkel märkt ”Mätpunkt”. Den skall tas loss från märklappen och fästas på vägg eller undertak i omedelbar anslutning till mätstället. Det skall genom gröna cirkelns placering klart framgå var mätpunkten kan återfinnas."]
["Gamla märklappar som revideras skall tas bort eller kryssas över. Tänk på att den gamla lappen kan vara ett bra sätt att tala om att en revidering gjorts."]
[]
["Protokollet"]
[]
["För redovisning av injusteringens resultat finns ett antal protokoll sammanfogade till ett dokument. Alla projekt behöver inte alla protokoll för att redovisas på rätt sätt. Syftet med protokollet är att få redovisningen av en utförd injustering, utformat på ett enhetligt sätt."]
["Protokollet är sedan ett bra verktyg att i efterhand kunna kontrollera ett ventilationssystem. "]
["I protokollet skall redovisas vilken mätmetod som använts och vilket instrument som brukats vid mätningen."]
["Vid ombyggnad av delar av ett system skall dokumentationen kunna användas för kontroll av ej berörda delar av systemet. Det här ställer stora krav på noggrannhet och det är endast vid injusteringstillfället dessa uppgifter är kända."]
[" Protokollet skall levereras som signerad papperskopia och även digitalt på diskett."]
[]
["Ett komplett protokoll skall innehålla ett eller flera exemplar av följande dokument. Injusteringsrapport, aggregatdataprotokoll, luftflödesprotokoll, spjäll- och mätpunktslista samt don- och mätenhetsförteckning. Dessutom skall papperskopian innehålla kalibreringsintyg på använda instrument."]
[]
["Injusteringsspjäll och andra strypanordningar"]
[]
["Spjällen skall märkas med den s.k. märklappen dess injusterat läge samt datum. Märkningen skall utföras även på gradskiva eller på annat lämpligt sätt och detta får inte ske förrän all injustering är slutförd."]
[" Eventuella gamla märkningar av spjälläge skall tas bort."]
[" Spjäll och andra enheter för flödesreglering skall låsas säkert i injusterat läge."]
[]
["Injusteringen"]
[]
["För injustering skall altid väljas proportionalitetsmetoden som säkert leder till ett väl fungerande system. Injusteringen skall utföras genom att följa en väl genomtänkt plan för hur projekterade luftflöden skall uppnås."]
["Resultatet för väl genomförd injustering skall vara ett system där tryckfallet över sämst belägna don är så lågt som möjligt, dock aldrig lägre än 25 Pa."]
["Det valda Referens- och indexdon skall anges i injusteringsrapporten."]
[]
["Varvning och varvtalsstyrning"]
[]
["Efter avslutad injustering skall totalflödet över fläkt anpassas till behovet."]
["Detta sker genom att justera fläktens varvtal. Vid sådan varvtalsändring med repdrifter skall hänsyn tas till dess dimensioner och möjlighet att överföra nödvändig effekt. Skivornas diameter, kilrepens antal och typ skall väljas på sådant sätt att slitage och underhåll minimeras."]
["Om frekvensomformare används för varvtalsjusteringen, skall en frekvens mellan 50-70 Hz eftersträvas. Detta för att uppnå bästa driftfall."]
["En reserv på 15% luftflödesökning skall finnas."]
[]
["Mätmetoderna"]
[]
["Vid injustering skall mätmetoder enligt Byggforskningsrådet T22:1998 användas. Om annan metod väljs, skall den kalibreras mot annan känd metod samt att detta redovisas i injusteringsrapporten. Antekna mätresultatet när du använder en annan mätmätod i fältet \"Verifiering\" och ange i Not fältet vilken mätmetod användes ."]
[]
["Mätfelet"]
[]
["För använda mätmetoder skall redovisas det sannolika mätfel som gäller för vart och ett av de använda instrumenten. Detta skall utföras på injusteringsrapportens första sida under ”anmärkningar”"]
["Maximalt tillåten flödesavvikelse skall vara 15 % inklusive det sannolika mätfelet."]
[]
["Instrumenten"]
[]
["För injustering skall lämpligt instrument användas. Swema med backpressor är att föredra. För kontroll av injusteringens resultat skall ett instrument användas som väl lämpar sig för ändamålet. Det använda instrumentet redovisas på injusteringsrapporten."]
["Samtliga för kontrollmätning använda instrument skall vara kalibrerade av godkänt kalibreringsställe.  Regelbundet under arbetets gång, skall en kontroll utföras att instrumentet bibehåller sin kalibrering."]
["Intyg på utförd kalibrering och utförda kontroller skall bifogas injusteringsrapporten. "]
[]
["Löpande kontroll och besiktning"]
[]
["Under projektets gång kommer injusteringsarbetet att kontrolleras. Avsikten med kontrollen är att ge stöd i arbetet mot väl fungerande ventilationssystem. Dessutom finns det möjligheter att i god tid upptäcka felaktigheter som då kan rättas till innan systemet tas i bruk. Kontrollen skall användas som underlag vid slutbesiktning."]
["All dokumentation gällande injusteringen skall finnas tillgänglig vid besiktning. Personal som ansvarat för injusteringen skall medverka vid besiktning och där kunna redogöra för metoder och resultat. De instrument som använts vid injusteringsarbetet skall finnas tillgängliga vid besiktningen."]